fUST/lending_fUST_20240621
["ID","MTS","AMOUNT","RATE_DAILY","PERIOD"]
[330014619,1718935841662,-505.76708539,0.00054794,120]
[330014620,1718935841671,-1297.23,0.00054794,120]
[330014621,1718935841681,-511.89382872,0.00054794,120]
[330014622,1718935841690,-508.3945455,0.00054794,120]
[330014623,1718935841700,-4792.3,0.00054794,21]
[330014624,1718935841709,-506.44261552,0.00054794,120]
[330014625,1718935841719,-1838.38,0.00054794,120]
[330014626,1718935841729,-1792.33,0.00054794,120]
[330014627,1718935841738,-1981.9,0.00054794,120]
[330014628,1718935841750,-500.0,0.00054794,120]
[330014629,1718935841771,-500.0,0.00054794,120]
[330014630,1718935841792,-500.0,0.00054794,120]
[330014631,1718935841814,-188.37814953,0.00054794,120]
[330014632,1718935841835,-1235.45,0.00054794,120]
[330014633,1718935841856,-25171.99,0.00054794,120]
[330014634,1718935841875,-2189.85,0.00054794,120]
[330014635,1718935841896,-9067.3,0.00054794,120]
[330014636,1718935841918,-500.0,0.00054794,90]
[330014637,1718935841940,-636.71,0.00054794,120]
[330014638,1718935841963,-500.0,0.00054794,120]
[330014639,1718935841977,-1320.82,0.00054794,120]
[330014640,1718935842068,-2718.07,0.00054794,120]
[330014641,1718935842078,-500.0,0.00054794,120]
[330014642,1718935842088,-281.98318289,0.00054794,120]
[330014643,1718935842098,-500.0,0.00054794,120]
[330014644,1718935842107,-682.84,0.00054794,120]
[330014645,1718935842117,-2678.54,0.00054794,120]
[330014646,1718935842126,-1101.64,0.00054794,120]
[330014647,1718935842136,-550.2426354,0.00054794,120]
[330014648,1718935842145,-728.89,0.00054794,120]
[330014649,1718935842155,-500.0,0.00054794,120]
[330014650,1718935842164,-663.24,0.00054794,120]
[330014651,1718935842174,-1713.12,0.00054794,120]
[330014652,1718935842183,-617.67,0.00054794,120]
[330014653,1718935842192,-1131.32,0.00054794,120]
[330014654,1718935842202,-531.8,0.00054794,120]
[330014655,1718935842211,-547.96,0.00054794,120]
[330014656,1718935842220,-8676.65,0.00054794,120]
[330014657,1718935842229,-500.0,0.00054794,120]
[330014658,1718935842239,-997.41,0.00054794,120]
[330014659,1718935842249,-1534.35,0.00054794,120]
[330014660,1718935842260,-500.0,0.00054794,120]
[330014661,1718935842269,-535.28090366,0.00054794,120]
[330014662,1718935842279,-733.08,0.00054794,120]
[330014663,1718935842289,-733.08,0.00054794,120]
[330014664,1718935842299,-733.08,0.00054794,120]
[330014665,1718935842310,-733.08,0.00054794,120]
[330014666,1718935842319,-733.08,0.00054794,120]
[330014667,1718935842328,-733.08,0.00054794,120]
[330014668,1718935842338,-733.08,0.00054794,120]
[330014669,1718935842347,-733.08,0.00054794,120]
[330014670,1718935842357,-733.08,0.00054794,120]
[330014671,1718935842366,-500.0,0.00054794,120]
[330014672,1718935842375,-733.08,0.00054794,120]
[330014673,1718935842385,-733.08,0.00054794,120]
[330014674,1718935842395,-733.08,0.00054794,120]
[330014675,1718935842405,-733.08,0.00054794,120]
[330014676,1718935842414,-733.08,0.00054794,120]
[330014677,1718935842424,-733.08,0.00054794,120]
[330014678,1718935842433,-733.08,0.00054794,120]
[330014679,1718935842442,-733.08,0.00054794,120]
[330014680,1718935842452,-733.08,0.00054794,120]
[330014681,1718935842461,-733.08,0.00054794,120]
[330014682,1718935842471,-733.08,0.00054794,120]
[330014683,1718935842480,-733.08,0.00054794,120]
[330014684,1718935842490,-733.08,0.00054794,120]
[330014685,1718935842499,-733.08,0.00054794,120]
[330014686,1718935842508,-500.0,0.00054794,120]
[330014687,1718935842517,-733.31916077,0.00054794,120]
[330014688,1718935842527,-842.78,0.00054794,120]
[330014689,1718935842536,-498.25541486,0.00054794,120]
[330014690,1718935842547,-507.39519876,0.00054794,120]
[330014691,1718935842556,-500.0,0.00054794,30]
[330014692,1718935842565,-681.23,0.00054794,120]
[330014693,1718935842574,-1932.05,0.00054794,120]
[330014694,1718935842583,-500.0,0.00054794,120]
[330014695,1718935842592,-500.0,0.00054794,120]
[330014696,1718935842602,-244.83329614,0.00054794,120]
[330014697,1718935842611,-519.40331147,0.00054794,120]
[330014698,1718935842622,-500.0,0.00054794,120]
[330014699,1718935842631,-1203.0,0.00054794,120]
[330014700,1718935842641,-514.16585481,0.00054794,120]
[330014701,1718935842651,-734.57,0.00054794,120]
[330014702,1718935842662,-717.76,0.00054794,120]
[330014703,1718935842671,-4620.62,0.00054794,120]
[330014704,1718935842680,-500.0,0.00054794,120]
[330014705,1718935842690,-500.0,0.00054794,120]
[330014706,1718935842699,-694.46,0.00054794,120]
[330014707,1718935842709,-622.76,0.00054794,120]
[330014708,1718935842718,-500.0,0.00054794,120]
[330014709,1718935842727,-511.95008472,0.00054794,120]
[330014710,1718935842736,-151.0,0.00054799,120]
[330014711,1718935842746,-151.0,0.00054799,120]
[330014712,1718935842756,-151.0,0.00054799,120]
[330014713,1718935842766,-151.0,0.00054799,120]
[330014714,1718935842775,-151.0,0.00054799,120]
[330014715,1718935842785,-265.00101018,0.00054799,120]
[330014716,1718935842923,-189.14561582,0.00054799,120]
[330014717,1718935842932,-454.146626,0.00054799,120]
[330014718,1718935842942,-252.040585,0.00054799,120]
[330014719,1718935842951,-252.040585,0.00054799,120]
[330014720,1718935842960,-397.75143,0.00054799,120]
[330014721,1718935842970,-397.75143,0.00054799,120]
[330014722,1718935842980,-506.16564017,0.000548,5]
[330014767,1718935844694,-51.18700278,0.00054794,120]
[330014768,1718935844707,-448.81299722,0.00054794,120]
[330014769,1718935844798,-500.0,0.00054794,120]
[330014770,1718935844808,-751.72198141,0.000548,5]
[330014771,1718935844820,-1000.0,0.00054849,10]
[330014772,1718935844831,-1000.0,0.00054849,10]
[330014773,1718935844841,-933.217085,0.00054849,10]
[330014774,1718935844850,-259.430286,0.00054849,120]
[330014775,1718935844862,-259.430286,0.00054849,120]
[330014776,1718935844873,-678.134179,0.00054849,120]
[330014777,1718935844883,-678.134179,0.00054849,120]
[330014778,1718935844892,-151.383921,0.00054849,120]
[330014779,1718935844904,-151.0,0.00054849,120]
[330014780,1718935844913,-151.0,0.00054849,120]
[330014781,1718935844922,-77.73508537,0.00054849,120]
[330014802,1718935847526,-75.79975663,0.00054849,120]
[330014804,1718935847536,-152.694731,0.00054849,120]
[330014806,1718935847547,-29.3285722,0.00054849,120]
[330015118,1718936834146,-157.01276931,0.00020896,2]
[330015119,1718936834167,-190.50091096,0.00020996,2]
[330015120,1718936834192,-175.861007,0.00021096,2]
[330015121,1718936834212,-676.98977627,0.00027637,2]
[330015122,1718936834234,-1005.343901,0.000296,2]
[330015123,1718936834254,-1000.0,0.000301,2]
[330015124,1718936834279,-163.499352,0.00036282,2]
[330015125,1718936834299,-350.0,0.00037472,2]
[330015126,1718936834320,-8572.9787323,0.00037473,2]
[330015127,1718936834342,-1570.32331788,0.00037673,2]
[330015128,1718936837179,-74.97140162,0.00037673,2]
[330015129,1718936837201,-250.0,0.00037934,2]
[330015130,1718936837223,-865.13232881,0.0004606,120]
[330015131,1718936837243,-160.0,0.00049091,3]
[330015132,1718936837267,-153.0,0.00052007,7]
[330015133,1718936837287,-1000.0,0.00052694,30]
[330015134,1718936837307,-117.7758379,0.00052694,4]
[330015135,1718936838117,-314.22227104,0.00052694,4]
[330015136,1718936838140,-245.0875605,0.00053872,2]
[330015137,1718936838161,-1086.21390857,0.000539,28]
[330015138,1718936838188,-4703.71196478,0.00053971,30]
[330015139,1718936838211,-1841.79872751,0.00053972,120]
[330015140,1718936954147,-348.7331642,0.00038324,2]
[330015141,1718936954168,-1134.47957328,0.00039341,2]
[330015142,1718936954188,-4381.4512237,0.00039441,2]
[330015143,1718937011979,1006.6591151,0.00039405,2]
[330015172,1718937032666,-150.0,0.00051871,4]
[330015173,1718937032678,-187.99873929,0.00051871,4]
[330015174,1718937032688,-7167.41,0.000535,120]
[330015175,1718937032697,-196.0700484,0.000539,2]
[330015176,1718937032708,-417.68720792,0.00053967,120]
[330015177,1718937032718,-42150.54498866,0.00053999,2]
[330015178,1718937032728,-13850.16357463,0.00054,30]
[330015271,1718937039568,-11936.77079816,0.00054,30]
[330015272,1718937039582,-501.8,0.00054,120]
[330015274,1718937039594,-2311.89834535,0.00054096,60]
[330015275,1718937039605,-196.07004836,0.00054098,2]
[330015276,1718937039616,-196.07004836,0.00054296,2]
[330015277,1718937039627,-155.62821388,0.00054299,4]
[330015278,1718937039637,-2752.732,0.000543,120]
[330015279,1718937039648,-196.07004836,0.00054494,2]
[330015280,1718937039659,-178.0,0.00054551,90]
[330015281,1718937039669,-196.07004836,0.00054692,2]
[330015282,1718937039680,-10571.98,0.00054698,120]
[330015283,1718937039691,-204.45,0.00054737,30]
[330015284,1718937039822,-170.38,0.00054737,30]
[330015285,1718937039833,-851.92,0.00054737,30]
[330015286,1718937039844,-1511.0479947,0.00054737,4]
[330015287,1718937039854,-155.0,0.0005475,69]
[330015288,1718937039865,-20569.5,0.00054783,3]
[330015289,1718937039876,-10571.98,0.0005479,120]
[330015290,1718937039886,-10571.98,0.00054792,120]
[330015291,1718937039896,-10571.98,0.00054792,120]
[330015292,1718937039906,-779.25,0.00054793,120]
[330015293,1718937039916,-2000.0,0.00054793,60]
[330015294,1718937039926,-2000.0,0.00054793,60]
[330015295,1718937039936,-931.28,0.00054793,60]
[330015296,1718937039947,-10571.98,0.00054793,120]
[330015297,1718937039957,-10571.98,0.00054793,120]
[330015298,1718937039968,-10571.98,0.00054793,120]
[330015299,1718937039977,-10571.98,0.00054793,120]
[330015300,1718937039990,-10571.98,0.00054793,120]
[330015301,1718937040000,-10571.98,0.00054793,120]
[330015302,1718937040010,-500.0,0.00054794,120]
[330015303,1718937040020,-500.0,0.00054794,120]
[330015304,1718937040029,-500.0,0.00054794,120]
[330015305,1718937040039,-738.79,0.00054794,120]
[330015306,1718937040049,-1577.39,0.00054794,120]
[330015307,1718937040059,-500.0,0.00054794,120]
[330015308,1718937040070,-500.0,0.00054794,120]
[330015309,1718937040079,-500.0,0.00054794,120]
[330015310,1718937040089,-500.0,0.00054794,120]
[330015311,1718937040099,-500.0,0.00054794,120]
[330015312,1718937040109,-500.0,0.00054794,120]
[330015313,1718937040119,-733.92,0.00054794,120]
[330015314,1718937040129,-500.0,0.00054794,120]
[330015315,1718937040140,-1319.48,0.00054794,120]
[330015316,1718937040149,-500.0,0.00054794,120]
[330015317,1718937040159,-500.0,0.00054794,120]
[330015318,1718937040169,-501.49976769,0.00054794,120]
[330015319,1718937040180,-500.0,0.00054794,120]
[330015320,1718937040190,-584.34129581,0.00054794,120]
[330015321,1718937040201,-657.1,0.00054794,120]
[330015322,1718937040211,-500.0,0.00054794,120]
[330015323,1718937040221,-500.0,0.00054794,120]
[330015324,1718937040232,-500.0,0.00054794,2]
[330015325,1718937040242,-575.69,0.00054794,120]
[330015326,1718937040258,-500.9647794,0.00054794,120]
[330015327,1718937040269,-500.0,0.00054794,120]
[330015328,1718937040279,-500.0,0.00054794,120]
[330015329,1718937040290,-500.0,0.00054794,120]
[330015330,1718937040301,-500.0,0.00054794,120]
[330015331,1718937040312,-500.0,0.00054794,120]
[330015332,1718937040322,-250.0,0.00054794,120]
[330015333,1718937040336,-500.0,0.00054794,120]
[330015334,1718937040347,-500.0,0.00054794,120]
[330015335,1718937040357,-2251.64,0.00054794,5]
[330015336,1718937040368,-500.0,0.00054794,120]
[330015337,1718937040379,-1293.18,0.00054794,120]
[330015338,1718937040388,-500.0,0.00054794,120]
[330015339,1718937040399,-500.0,0.00054794,120]
[330015340,1718937040409,-500.0,0.00054794,120]
[330015341,1718937040419,-500.0,0.00054794,120]
[330015342,1718937040430,-625.23802131,0.00054794,120]
[330015343,1718937040440,-1841.65,0.00054794,120]
[330015344,1718937040450,-500.0,0.00054794,120]
[330015345,1718937040461,-500.0,0.00054794,120]
[330015346,1718937040472,-500.0,0.00054794,120]
[330015347,1718937040482,-500.0,0.00054794,120]
[330015348,1718937040493,-500.0,0.00054794,120]
[330015349,1718937040504,-500.0,0.00054794,120]
[330015350,1718937040514,-500.0,0.00054794,120]
[330015351,1718937040524,-500.0,0.00054794,120]
[330015352,1718937040536,-500.0,0.00054794,120]
[330015353,1718937040546,-500.0,0.00054794,120]
[330015355,1718937040556,-500.0,0.00054794,120]
[330015357,1718937040567,-499.90427552,0.00054794,120]
[330015359,1718937040577,-500.0,0.00054794,120]
[330015361,1718937040587,-500.0,0.00054794,120]
[330015362,1718937040596,-675.56,0.00054794,120]
[330015364,1718937040607,-500.0,0.00054794,120]
[330015366,1718937040617,-500.0,0.00054794,120]
[330015368,1718937040627,-370.85544557,0.00054794,120]
[330015370,1718937040637,-793.4,0.00054794,120]
[330015372,1718937040646,-500.0,0.00054794,120]
[330015374,1718937040656,-500.0,0.00054794,120]
[330015376,1718937040667,-500.0,0.00054794,120]
[330015378,1718937040677,-2481.91,0.00054794,120]
[330015380,1718937040687,-2947.52,0.00054794,120]
[330015382,1718937040697,-946.21,0.00054794,120]
[330015384,1718937040707,-1516.58,0.00054794,120]
[330015386,1718937040717,-281.98318289,0.00054794,120]
[330015388,1718937040728,-500.0,0.00054794,120]
[330015390,1718937040739,-1944.35,0.00054794,120]
[330015392,1718937040749,-500.0,0.00054794,120]
[330015394,1718937040760,-500.0,0.00054794,120]
[330015396,1718937040769,-500.0,0.00054794,120]
[330015398,1718937040780,-563.52,0.00054794,7]
[330015400,1718937040790,-550.2426354,0.00054794,120]
[330015402,1718937040801,-500.0,0.00054794,120]
[330015405,1718937040811,-932.26,0.00054794,120]
[330015406,1718937040821,-500.0,0.00054794,2]
[330015408,1718937040831,-500.0,0.00054794,120]
[330015411,1718937040841,-617.67,0.00054794,120]
[330015412,1718937040852,-500.0,0.00054794,120]
[330015415,1718937040862,-500.0,0.00054794,120]
[330015417,1718937040872,-500.0,0.00054794,120]
[330015419,1718937040882,-500.0,0.00054794,120]
[330015421,1718937040892,-500.0,0.00054794,120]
[330015423,1718937040901,-500.0,0.00054794,120]
[330015425,1718937040911,-500.0,0.00054794,120]
[330015426,1718937040922,-519.40331147,0.00054794,120]
[330015429,1718937040931,-500.0,0.00054794,120]
[330015431,1718937040941,-500.0,0.00054794,120]
[330015433,1718937040951,-511.95008472,0.00054794,120]
[330015434,1718937040960,-2187.28,0.00054794,120]
[330015436,1718937040970,-500.0,0.00054794,120]
[330015438,1718937040979,-223.94889485,0.00054794,120]
[330015441,1718937040990,-151.0,0.00054794,14]
[330015443,1718937041000,-500.0,0.00054794,120]
[330015445,1718937041009,-635.28,0.00054794,120]
[330015447,1718937041019,-1960.42,0.00054794,120]
[330015449,1718937041029,-2888.14,0.00054794,120]
[330015451,1718937041039,-162.92754845,0.00054794,120]
[330015458,1718937041539,-1603.27245155,0.00054794,120]
[330015459,1718937041549,-412.5322674,0.00054794,120]
[330015460,1718937041558,-500.0,0.00054794,120]
[330015461,1718937041568,-500.0,0.00054794,120]
[330015462,1718937041578,-242.79909904,0.00054794,120]
[330015463,1718937041588,-7371.2,0.00054794,120]
[330015464,1718937041598,-500.0,0.00054794,120]
[330015465,1718937041608,-958.63,0.00054794,120]
[330015466,1718937041617,-709.98,0.00054794,120]
[330015467,1718937041628,-3449.38,0.00054794,120]
[330015468,1718937041639,-510.46527343,0.00054794,120]
[330015469,1718937041648,-500.0,0.00054794,120]
[330015470,1718937041658,-3981.05296121,0.00054794,120]
[330015471,1718937041671,-15275.02703879,0.00054794,120]
[330015472,1718937041681,-561.79,0.00054794,120]
[330015473,1718937041691,-500.0,0.00054794,120]
[330015474,1718937041701,-500.0,0.00054794,120]
[330015475,1718937041711,-901.03,0.00054794,120]
[330015476,1718937041720,-1771.45,0.00054794,120]
[330015477,1718937041730,-500.0,0.00054794,120]
[330015478,1718937041741,-500.0,0.00054794,120]
[330015479,1718937041751,-500.0,0.00054794,120]
[330015480,1718937041761,-441.84104584,0.00054794,120]
[330015481,1718937041772,-500.0,0.00054794,120]
[330015482,1718937041782,-500.0,0.00054794,60]
[330015483,1718937041792,-51903.24,0.00054794,120]
[330015484,1718937041802,-636.42,0.00054794,120]
[330015485,1718937041812,-8114.57,0.00054794,120]
[330015486,1718937041821,-613.3,0.00054794,120]
[330015487,1718937041831,-500.0,0.00054794,120]
[330015488,1718937041840,-500.0,0.00054794,120]
[330015489,1718937041849,-565.63,0.00054794,120]
[330015490,1718937041859,-1173.34,0.00054794,120]
[330015491,1718937041868,-536.56,0.00054794,120]
[330015492,1718937041878,-500.0,0.00054794,120]
[330015493,1718937041887,-4994.66,0.00054794,21]
[330015494,1718937041897,-1126.27,0.00054794,120]
[330015495,1718937041906,-1318.51,0.00054794,120]
[330015496,1718937041916,-576.03,0.00054794,120]
[330015497,1718937041926,-500.0,0.00054794,90]
[330015498,1718937041935,-500.0,0.00054794,120]
[330015499,1718937041945,-500.0,0.00054794,120]
[330015500,1718937041955,-1243.18,0.00054794,120]
[330015501,1718937041964,-1734.21,0.00054794,120]
[330015502,1718937041974,-9349.98,0.00054794,120]
[330015503,1718937041984,-500.0,0.00054794,120]
[330015504,1718937041992,-153.479533,0.00054794,14]
[330015505,1718937042002,-1930.24,0.00054794,120]
[330015506,1718937042012,-688.88,0.00054794,120]
[330015507,1718937042022,-508.3945455,0.00054794,120]
[330015508,1718937042031,-188.37814953,0.00054794,120]
[330015509,1718937042041,-500.0,0.00054794,120]
[330015510,1718937042050,-500.0,0.00054794,120]
[330015511,1718937042060,-838.38,0.00054794,120]
[330015512,1718937042070,-728.89,0.00054794,120]
[330015513,1718937042079,-1179.47,0.00054794,120]
[330015514,1718937042089,-511.89382872,0.00054794,120]
[330015515,1718937042098,-1981.9,0.00054794,120]
[330015516,1718937042108,-2823.26,0.00054794,120]
[330015517,1718937042201,-636.71,0.00054794,120]
[330015518,1718937042211,-2052.7,0.00054794,120]
[330015519,1718937042221,-2436.85,0.00054794,120]
[330015520,1718937042231,-1342.86,0.00054794,120]
[330015521,1718937042244,-663.24,0.00054794,120]
[330015522,1718937042255,-1786.6,0.00054794,120]
[330015523,1718937042264,-2776.09,0.00054794,120]
[330015524,1718937042274,-1235.45,0.00054794,120]
[330015525,1718937042286,-151.0,0.00054794,14]
[330015526,1718937042295,-500.0,0.00054794,120]
[330015527,1718937042306,-233.487257,0.00054794,14]
[330015528,1718937042316,-233.487257,0.00054794,14]
[330015529,1718937042328,-500.0,0.00054794,120]
[330015530,1718937042338,-507.39519876,0.00054794,120]
[330015531,1718937042348,-681.23,0.00054794,120]
[330015532,1718937042358,-371.40601537,0.00054794,120]
[330015533,1718937042367,-547.96,0.00054794,120]
[330015534,1718937042377,-9232.81,0.00054794,120]
[330015535,1718937042387,-1101.64,0.00054794,120]
[330015536,1718937042397,-500.0,0.00054794,120]
[330015537,1718937042406,-498.25541486,0.00054794,120]
[330015538,1718937042416,-500.0,0.00054794,120]
[330015539,1718937042426,-500.0,0.00054794,30]
[330015540,1718937042436,-500.0,0.00054794,120]
[330015541,1718937042445,-2323.91,0.00054794,120]
[330015542,1718937042455,-2323.91,0.00054794,120]
[330015543,1718937042465,-2323.91,0.00054794,120]
[330015544,1718937042474,-2323.91,0.00054794,120]
[330015545,1718937042485,-500.0,0.00054794,120]
[330015546,1718937042495,-2323.91,0.00054794,120]
[330015547,1718937042505,-2323.91,0.00054794,120]
[330015548,1718937042514,-2323.91,0.00054794,120]
[330015549,1718937042524,-4620.62,0.00054794,120]
[330015550,1718937042534,-2323.91,0.00054794,120]
[330015551,1718937042543,-2323.91,0.00054794,120]
[330015552,1718937042553,-2323.91,0.00054794,120]
[330015553,1718937042563,-2323.91,0.00054794,120]
[330015554,1718937042573,-2323.91,0.00054794,120]
[330015555,1718937042583,-2323.91,0.00054794,120]
[330015556,1718937042594,-2323.91,0.00054794,120]
[330015557,1718937042605,-2323.91,0.00054794,120]
[330015558,1718937042615,-500.0,0.00054794,120]
[330015559,1718937042624,-734.57,0.00054794,120]
[330015560,1718937042635,-244.83329614,0.00054794,120]
[330015561,1718937042646,-997.41,0.00054794,120]
[330015562,1718937042655,-528.50643337,0.00054794,120]
[330015563,1718937042666,-500.0,0.00054794,120]
[330015564,1718937042675,-531.8,0.00054794,120]
[330015565,1718937042685,-622.76,0.00054794,120]
[330015566,1718937042695,-1587.48,0.00054794,120]
[330015567,1718937042705,-500.0,0.00054794,120]
[330015568,1718937042715,-842.78,0.00054794,120]
[330015569,1718937042725,-26050.72,0.00054794,120]
[330015570,1718937042735,-1203.0,0.00054794,120]
[330015571,1718937042745,-535.28090366,0.00054794,120]
[330015572,1718937042754,-301.07703121,0.00054794,120]
[330015573,1718937042765,-500.0,0.00054794,120]
[330015574,1718937042775,-500.0,0.00054794,120]
[330015575,1718937042785,-717.76,0.00054794,120]
[330015576,1718937042795,-1932.05,0.00054794,120]
[330015577,1718937042805,-5507.75,0.00054794,120]
[330015578,1718937042815,-500.0,0.00054794,120]
[330015579,1718937042824,-500.0,0.00054794,120]
[330015580,1718937042834,-500.0,0.00054794,120]
[330015581,1718937042844,-500.0,0.00054794,120]
[330015582,1718937042854,-500.0,0.00054794,120]
[330015583,1718937042864,-694.46,0.00054794,120]
[330015584,1718937042873,-682.84,0.00054794,120]
[330015585,1718937042883,-175.58741,0.00054798,120]
[330015586,1718937042893,-151.0,0.00054798,120]
[330015587,1718937042903,-151.0,0.00054798,120]
[330015588,1718937042913,-439.835934,0.00054798,120]
[330015589,1718937042922,-439.835934,0.00054798,120]
[330015590,1718937042932,-294.889428,0.00054798,120]
[330015591,1718937042942,-151.0,0.00054798,120]
[330015592,1718937042952,-10571.98,0.00054847,120]
[330015593,1718937042962,-2323.91,0.00054847,120]
[330015594,1718937042972,-151.0,0.00054848,120]
[330015596,1718937042982,-151.0,0.00054848,120]
[330015597,1718937042995,-152.995928,0.00054848,120]
[330015598,1718937043005,-151.0,0.00054848,120]
[330015600,1718937043019,-151.0,0.00054848,120]
[330015601,1718937043029,-2323.91,0.00054848,120]
[330015602,1718937043039,-2323.91,0.00054875,120]
[330015603,1718937043048,-2323.91,0.00054875,120]
[330015604,1718937043058,-2323.91,0.00054875,120]
[330015605,1718937043068,-2323.91,0.00054875,120]
[330015606,1718937043078,-2323.91,0.00054875,120]
[330015607,1718937043088,-2323.91,0.00054875,120]
[330015608,1718937043098,-2324.12916077,0.00054875,120]
[330015609,1718937043108,-500.0,0.00054876,120]
[330015610,1718937043117,-500.0,0.00054876,120]
[330015611,1718937043127,-2251.64,0.00054876,5]
[330015612,1718937043137,-500.0,0.00054876,120]
[330015613,1718937043147,-1293.18,0.00054876,120]
[330015614,1718937043156,-500.0,0.00054876,120]
[330015615,1718937043166,-500.0,0.00054876,120]
[330015616,1718937043176,-500.0,0.00054876,120]
[330015617,1718937043186,-500.0,0.00054876,120]
[330015618,1718937043196,-1841.65,0.00054876,120]
[330015619,1718937043205,-500.0,0.00054876,120]
[330015620,1718937043215,-500.0,0.00054876,120]
[330015621,1718937043225,-500.0,0.00054876,120]
[330015622,1718937043235,-500.0,0.00054876,120]
[330015623,1718937043247,-500.0,0.00054876,120]
[330015624,1718937043257,-500.0,0.00054876,120]
[330015625,1718937043267,-500.0,0.00054876,120]
[330015626,1718937043277,-294.55061259,0.00054876,120]
[330015627,1718937043287,-500.0,0.00054876,120]
[330015628,1718937043296,-500.0,0.00054876,120]
[330015629,1718937043306,-500.0,0.00054876,120]
[330015630,1718937043316,-500.0,0.00054876,120]
[330015631,1718937043328,-500.0,0.00054876,120]
[330015632,1718937043338,-675.56,0.00054876,120]
[330015633,1718937043347,-421.52891483,0.00054876,120]
[330015634,1718937043358,-500.0,0.00054876,120]
[330015635,1718937043367,-793.4,0.00054876,120]
[330015636,1718937043377,-500.0,0.00054876,120]
[330015637,1718937043387,-500.0,0.00054876,120]
[330015638,1718937043396,-500.0,0.00054876,120]
[330015639,1718937043406,-2481.91,0.00054876,120]
[330015640,1718937043416,-2947.52,0.00054876,120]
[330015641,1718937043426,-946.21,0.00054876,120]
[330015642,1718937043436,-1516.58,0.00054876,120]
[330015643,1718937043446,-500.0,0.00054876,120]
[330015644,1718937043456,-1944.35,0.00054876,120]
[330015645,1718937043466,-500.0,0.00054876,120]
[330015647,1718937043476,-500.0,0.00054876,120]
[330015649,1718937043486,-500.0,0.00054876,120]
[330015650,1718937043496,-151.0,0.00054876,120]
[330015652,1718937043506,-152.568716,0.00054876,120]
[330015654,1718937043515,-563.52,0.00054876,7]
[330015656,1718937043525,-151.0,0.00054876,120]
[330015658,1718937043534,-158.065339,0.00054876,120]
[330015660,1718937043545,-500.0,0.00054876,120]
[330015662,1718937043555,-932.26,0.00054876,120]
[330015664,1718937043564,-500.0,0.00054876,2]
[330015666,1718937043575,-500.0,0.00054876,120]
[330015668,1718937043585,-617.67,0.00054876,120]
[330015670,1718937043596,-500.0,0.00054876,120]
[330015672,1718937043606,-500.0,0.00054876,120]
[330015674,1718937043616,-244.444046,0.00054876,120]
[330015676,1718937043626,-244.444046,0.00054876,120]
[330015678,1718937043636,-244.444046,0.00054876,120]
[330015680,1718937043645,-244.444046,0.00054876,120]
[330015682,1718937043655,-151.0,0.00054876,120]
[330015684,1718937043665,-151.0,0.00054876,120]
[330015686,1718937043675,-500.0,0.00054876,120]
[330015688,1718937043686,-500.0,0.00054876,120]
[330015690,1718937043696,-500.0,0.00054876,120]
[330015692,1718937043706,-500.0,0.00054876,120]
[330015694,1718937043717,-500.0,0.00054876,120]
[330015696,1718937043727,-500.0,0.00054876,120]
[330015698,1718937043740,-500.0,0.00054876,120]
[330015699,1718937043751,-2187.28,0.00054876,120]